[Event "22nd ECCC Women 2017"]
[Site "Antalya"]
[Date "2017.10.12"]
[Round "5"]
[White "Ayan, Bengu Sena"]
[Black "Klinova, Masha"]
[Result "0-1"]
[ECO "E60"]
[WhiteElo "1888"]
[BlackElo "2289"]
[Annotator "NA"]
[PlyCount "72"]
[EventType "team-tourn"]
[EventCountry "TUR"]
[SourceTitle "playchess.com"]
[Source "ChessBase"]
[SourceQuality "1"]
[WhiteTeam "Aegean"]
[BlackTeam "Beer Sheva"]
[TimeControl "40/5400+30:1800+30"]

1. d4 d6 2. Nf3 Nf6 3. g3 g6 4. Bg2 Bg7 5. O-O O-O 6. c4 {[%emt 0:01:00]} c6 {[%emt 0:03:30]} 7. b3 {[%emt 0:00:30]} Bf5 {[%emt 0:01:30]} 8. Bb2 {[%emt 0:00:30] E60: King's Indian: Unusual lines and Fianchetto Variation without Nc3} d5 {[%emt 0:03:30]} (8... a5 9. Nc3 Ne4 10. Nh4 Nxc3 11. Bxc3 Bc8 12. Qd2 d5 13. Nf3 Nd7 14. cxd5 cxd5 15. Ne5 Nf6 {1-0 (52) Dubov,D (2648)-Rakhmanov,A (2662) Sochi 2016}) 9. cxd5 $146 {[%emt 0:08:30]} ({Predecessor:} 9. Nc3 Ne4 10. Nxe4 Bxe4 11. Qd2 a5 12. Rfc1 Nd7 13. cxd5 cxd5 14. Qf4 a4 15. Qc7 {½-½ (57) Vykouk,J (2431)-Morozov,N (2458) Rymanow Zdroj 2017}) 9... cxd5 {[%emt 0:00:30]} 10. Nc3 {[%emt 0:01:30]} Ne4 {[%emt 0:03:30]} 11. Nh4 {[%emt 0:08:30]} Nxc3 {[%emt 0:03:30]} 12. Bxc3 {[%emt 0:00:30]} Be6 {[%emt 0:01:30]} 13. Rc1 {[%emt 0:09:30]} Nc6 {[%emt 0:00:30]} 14. Qd2 {[%emt 0:02:30]} Qd7 {[%emt 0:05:30]} 15. Rfd1 {[%emt 0:03:30]} Rac8 {[%emt 0:08:30]} 16. e4 {[%emt 0:14:30]} Rcd8 {[%emt 0:10:30]} 17. e5 {[%emt 0:06:30]} f6 {[%emt 0:01:30]} 18. exf6 {[%emt 0:05:30]} Bxf6 {[%emt 0:08:30]} 19. Nf3 {[%emt 0:04:30]} Bg4 {[%emt 0:02:30]} 20. Qe3 {[%emt 0:08:30]} Qf5 {[%emt 0:03:30]} 21. Rd3 {[%emt 0:03:30]} Bxf3 $11 {[%emt 0:18:30]} 22. Qxf3 {[%emt 0:00:30]} Qxf3 {[%emt 0:00:30]} 23. Bxf3 {[%emt 0:01:59]} Bxd4 {[%emt 0:04:32]} 24. Bxd4 {[%emt 0:01:53]} Nxd4 {[%emt 0:00:28]} 25. Rxd4 {[%emt 0:00:09]} Rxf3 {[%emt 0:00:30]} 26. Rc7 {[%emt 0:02:07]} Rf7 {[%emt 0:06:50]} 27. Rxb7 {[%emt 0:03:30]} e5 {[%emt 0:00:53]} 28. Rdb4 {[%emt 0:01:41]} Rdd7 {[%emt 0:01:12]} 29. Rb8+ {[%emt 0:02:09]} Kg7 {[%emt 0:00:27]} 30. Re8 {[%emt 0:00:51]} e4 {[%emt 0:04:00]} 31. Kf1 {[%emt 0:04:44]} Rc7 {[%emt 0:01:10]} 32. Rd4 {[%emt 0:04:51]} Rc2 {[%emt 0:00:09]} 33. f4 {[%emt 0:00:51]} exf3 {[%emt 0:00:47]} 34. Rxd5 {[%emt 0:00:35]} Rxh2 {[%emt 0:01:02]} 35. Red8 {[%emt 0:01:35]} f2 {[%emt 0:01:14]} 36. Rd1 {[%emt 0:00:21]} Rh1+ {[%emt 0:00:14]} 0-1

[Event "22nd ECCC Women 2017"]
[Site "Antalya"]
[Date "2017.10.12"]
[Round "5"]
[White "Brusilovski, Lena"]
[Black "Celik, Eda"]
[Result "1-0"]
[ECO "C55"]
[WhiteElo "1881"]
[BlackElo "1880"]
[Annotator "NA"]
[PlyCount "99"]
[EventType "team-tourn"]
[EventCountry "TUR"]
[SourceTitle "playchess.com"]
[Source "ChessBase"]
[SourceQuality "1"]
[WhiteTeam "Beer Sheva"]
[BlackTeam "Aegean"]
[TimeControl "40/5400+30:1800+30"]

1. e4 e5 2. Nf3 Nc6 3. Bc4 {[%emt 0:01:30]} Nf6 {[%emt 0:01:00]} 4. d3 {[%emt 0:02:30]} h6 {[%emt 0:00:30]} 5. O-O {[%emt 0:02:30]} d6 {[%emt 0:00:00]} 6. c3 {[%emt 0:00:30]} g6 {[%emt 0:00:00]} 7. Bb3 {[%emt 0:01:30]} Bg7 {[%emt 0:00:30]} 8. Re1 {[%emt 0:01:30]} O-O {[%emt 0:00:30]} 9. Nbd2 {[%emt 0:00:30]} Na5 {[%emt 0:03:30]} 10. Bc2 {[%emt 0:00:30]} c5 {[%emt 0:00:00]} 11. Nf1 {[%emt 0:00:30]} Nc6 {[%emt 0:01:00]} 12. h3 {[%emt 0:05:30]} Be6 {[%emt 0:04:30]} 13. Ng3 {[%emt 0:01:30]} d5 {[%emt 0:05:30]} 14. Qe2 {[%emt 0:02:30]} d4 {[%emt 0:05:30]} 15. Bd2 {[%emt 0:02:30]} b5 {[%emt 0:06:30]} 16. a4 {[%emt 0:02:30]} a6 {[%emt 0:02:30]} 17. Nh2 {[%emt 0:01:30]} Nd7 {[%emt 0:06:30]} 18. c4 {[%emt 0:05:30]} bxc4 {[%emt 0:03:30]} 19. dxc4 {[%emt 0:00:30]} Rb8 {[%emt 0:05:30]} 20. b3 {[%emt 0:01:30]} Nb4 {[%emt 0:05:30]} 21. Bc1 {[%emt 0:01:30]} f5 {[%emt 0:09:30]} 22. exf5 {[%emt 0:05:30]} gxf5 {[%emt 0:00:30]} 23. Nh5 {[%emt 0:01:30]} e4 {[%emt 0:06:30]} 24. Nxg7 {[%emt 0:01:30]} Kxg7 {[%emt 0:00:00]} 25. Bb1 {[%emt 0:00:30]} Qf6 {[%emt 0:04:00]} 26. Bb2 {[%emt 0:04:30]} Ne5 {[%emt 0:03:30]} 27. Ng4 {[%emt 0:13:30]} fxg4 {[%emt 0:09:03]} 28. Qxe4 {[%emt 0:00:30]} Bf5 {[%emt 0:09:05]} 29. Qxe5 {[%emt 0:00:30]} Qxe5 {[%emt 0:00:43]} 30. Rxe5 {[%emt 0:00:30]} Bxb1 {[%emt 0:00:00]} 31. Rxb1 {[%emt 0:00:30]} Nd3 {[%emt 0:00:00]} 32. Re2 {[%emt 0:00:30]} Rxb3 {[%emt 0:02:50]} 33. Bxd4+ {[%emt 0:01:30]} cxd4 {[%emt 0:00:08]} 34. Rxb3 {[%emt 0:00:00]} Nc1 {[%emt 0:06:09]} 35. Rb7+ {[%emt 0:00:00]} Kf6 {[%emt 0:01:16]} 36. Rc2 {[%emt 0:00:30]} Nd3 {[%emt 0:01:08]} 37. Rd2 {[%emt 0:00:30]} Nc5 {[%emt 0:00:28]} 38. Rb6+ {[%emt 0:01:30]} Ke5 {[%emt 0:00:42]} 39. hxg4 {[%emt 0:00:30]} Ne4 {[%emt 0:01:05]} 40. Rd1 {[%emt 0:00:00]} Rxf2 {[%emt 0:01:23]} 41. Rxh6 {[%emt 0:02:00]} Ra2 {[%emt 0:06:30]} 42. Rxa6 {[%emt 0:00:30]} Nc3 {[%emt 0:03:30]} 43. Re1+ {[%emt 0:00:30]} Kf4 {[%emt 0:00:30]} 44. Rd6 {[%emt 0:00:30]} Kg3 {[%emt 0:01:30]} 45. Kh1 {[%emt 0:01:30]} Rxg2 {[%emt 0:12:11]} 46. Rg1 {[%emt 0:00:30]} Rxg1+ {[%emt 0:03:22]} 47. Kxg1 {[%emt 0:00:30]} Ne2+ {[%emt 0:00:52]} 48. Kf1 {[%emt 0:00:30]} Kf3 {[%emt 0:00:56]} 49. Rf6+ {[%emt 0:01:30]} Ke3 {[%emt 0:00:09]} 50. Re6+ {[%emt 0:00:00]} 1-0

[Event "22nd ECCC Women 2017"]
[Site "Antalya"]
[Date "2017.10.12"]
[Round "5"]
[White "Ince, Safiye Oyku"]
[Black "Yildiz, Betul Cemre"]
[Result "0-1"]
[ECO "C45"]
[WhiteElo "1861"]
[BlackElo "2350"]
[Annotator "NA"]
[PlyCount "86"]
[EventType "team-tourn"]
[EventCountry "TUR"]
[SourceTitle "playchess.com"]
[Source "ChessBase"]
[SourceQuality "1"]
[WhiteTeam "Mediterranean"]
[BlackTeam "Anatolia"]
[TimeControl "40/5400+30:1800+30"]

1. e4 e5 2. Nf3 Nc6 3. d4 exd4 4. Nxd4 {[%emt 0:00:00]} Bb4+ {[%emt 0:02:30]} 5. Nc3 {[%emt 0:02:30] C45: Schottische Partie} (5. c3 Be7 6. Nxc6 bxc6 7. Bd3 d6 8. O-O Nf6 9. Re1 O-O 10. Nd2 Re8 11. Nf3 Nd7 12. Bf4 Nc5 13. Bc2 Bg4 14. h3 Bh5 15. Be3 Nd7 16. Ba4 c5 {0-1 (29) So,W (2810)-Carlsen,M (2822) Saint Louis 2017}) 5... Qe7 {[%emt 0:08:30]} 6. Qd3 {[%emt 0:13:30]} Nf6 {[%emt 0:07:30]} 7. Bd2 {[%emt 0:13:30]} Bxc3 $146 {[%emt 0:21:30]} ({Vorgänger:} 7... Nxd4 8. Qxd4 O-O 9. Bd3 Bc5 10. Qc4 Ng4 11. O-O Qh4 12. Bf4 Bxf2+ 13. Kh1 Nxh2 14. Qxc7 Nxf1+ 15. Bh2 Ng3+ {0-1 (15) Waclawski,K (1551)-Vogel,J (1951) Koblenz 2003}) 8. Bxc3 {[%emt 0:00:00]} Qxe4+ {[%emt 0:01:30]} 9. Qxe4+ {[%emt 0:01:00]} Nxe4 {[%emt 0:00:00]} 10. Nxc6 {[%emt 0:02:30]} Nxc3 {[%emt 0:02:00]} 11. Nxa7 {[%emt 0:00:30]} Rxa7 {[%emt 0:00:30]} 12. bxc3 {[%emt 0:00:00]} Ra5 {[%emt 0:05:30]} 13. Bd3 {[%emt 0:12:00]} d6 {[%emt 0:02:30]} 14. Kd2 {[%emt 0:01:30]} O-O {[%emt 0:02:30]} 15. Rhb1 {[%emt 0:00:30]} b6 {[%emt 0:03:30]} 16. Bc4 {[%emt 0:08:30]} d5 {[%emt 0:05:30]} 17. Bd3 {[%emt 0:01:30]} Be6 {[%emt 0:00:30]} 18. Rb5 {[%emt 0:06:30]} Ra3 {[%emt 0:00:30]} 19. Rb3 {[%emt 0:04:30]} Rfa8 {[%emt 0:02:30]} 20. Rb2 {[%emt 0:02:30]} Kf8 {[%emt 0:01:30]} 21. Be2 {[%emt 0:05:30]} Ke7 {[%emt 0:00:30]} 22. Bf3 {[%emt 0:00:30]} R8a4 {[%emt 0:00:30]} 23. Rb4 $17 {[%emt 0:03:30]} Rxb4 {[%emt 0:14:42]} 24. cxb4 {[%emt 0:00:30]} d4 {[%emt 0:00:00]} 25. Be2 {[%emt 0:01:30]} Kd6 {[%emt 0:03:22]} 26. b5 {[%emt 0:00:30]} Rxa2 {[%emt 0:00:45]} 27. Rc1 {[%emt 0:03:57]} Kc5 {[%emt 0:01:07]} 28. Bd3 {[%emt 0:01:00]} h6 {[%emt 0:05:59]} 29. Re1 {[%emt 0:00:09]} Ra8 {[%emt 0:01:55]} 30. Re5+ {[%emt 0:01:00]} Kd6 {[%emt 0:00:30]} 31. Re4 {[%emt 0:00:00]} Kd5 {[%emt 0:00:32]} 32. Rh4 {[%emt 0:00:02]} Rd8 {[%emt 0:00:52]} 33. Rh5+ {[%emt 0:00:22]} Kd6 {[%emt 0:00:30]} 34. f4 {[%emt 0:00:05]} f6 {[%emt 0:04:48]} 35. f5 {[%emt 0:00:57]} Bd5 {[%emt 0:00:05]} 36. Rh4 {[%emt 0:00:00]} Kc5 {[%emt 0:00:26]} 37. Rg4 {[%emt 0:00:10]} Rd7 {[%emt 0:00:00]} 38. c3 {[%emt 0:00:44]} Bc4 {[%emt 0:03:34]} 39. Bxc4 {[%emt 0:00:05]} Kxc4 {[%emt 0:00:23]} 40. Kc2 {[%emt 0:00:00]} Kxb5 {[%emt 0:00:30]} 41. cxd4 {[%emt 0:00:59]} Kc4 {[%emt 0:00:30]} 42. Rg3 {[%emt 0:00:00]} Re7 {[%emt 0:01:30]} 43. Rg4 {[%emt 0:00:00]} h5 {[%emt 0:01:30]} 0-1

[Event "22nd ECCC Women 2017"]
[Site "Antalya"]
[Date "2017.10.12"]
[Round "5"]
[White "Ozbek, Busra"]
[Black "Arda, Cagil Irmak"]
[Result "1/2-1/2"]
[ECO "D02"]
[WhiteElo "1850"]
[BlackElo "2040"]
[Annotator "NA"]
[PlyCount "121"]
[EventType "team-tourn"]
[EventCountry "TUR"]
[SourceTitle "playchess.com"]
[Source "ChessBase"]
[SourceQuality "1"]
[WhiteTeam "Mediterranean"]
[BlackTeam "Anatolia"]
[TimeControl "40/5400+30:1800+30"]

1. d4 c6 2. Nf3 Nf6 {[%emt 0:01:30]} 3. Bf4 {[%emt 0:06:30]} d5 {[%emt 0:03:30]} 4. e3 {[%emt 0:02:30]} Bg4 {[%emt 0:03:30]} 5. c3 {[%emt 0:12:30]} e6 {[%emt 0:00:00]} 6. Qb3 {[%emt 0:04:30]} Qb6 {[%emt 0:05:00]} 7. Nbd2 {[%emt 0:04:30]} Nbd7 {[%emt 0:04:30]} 8. Be2 {[%emt 0:07:30]} Be7 {[%emt 0:04:30]} 9. h3 {[%emt 0:06:30]} Bh5 {[%emt 0:04:30]} 10. O-O {[%emt 0:04:30]} h6 {[%emt 0:05:30]} 11. Rfe1 {[%emt 0:03:30]} Bg6 {[%emt 0:12:30]} 12. Ne5 {[%emt 0:09:30]} Nxe5 {[%emt 0:02:30]} 13. Bxe5 {[%emt 0:00:30]} O-O {[%emt 0:00:30]} 14. a4 {[%emt 0:05:30]} Nd7 {[%emt 0:03:30]} 15. Bg3 {[%emt 0:02:30]} Rfc8 {[%emt 0:10:30]} 16. a5 {[%emt 0:11:41]} Qxb3 {[%emt 0:04:30]} 17. Nxb3 $11 {[%emt 0:00:05]} Bc2 {[%emt 0:02:30]} 18. Nd2 {[%emt 0:00:24]} c5 {[%emt 0:00:30]} 19. a6 {[%emt 0:03:22]} b6 {[%emt 0:02:30]} 20. Bb5 {[%emt 0:00:25]} Nf6 {[%emt 0:01:30]} 21. Rac1 {[%emt 0:03:40]} Bg6 {[%emt 0:02:30]} 22. Bh2 {[%emt 0:01:34]} Bd8 {[%emt 0:03:30]} 23. Kh1 {[%emt 0:02:25]} Kf8 {[%emt 0:05:10]} 24. Nf3 {[%emt 0:02:15]} Ne4 {[%emt 0:08:35]} 25. Bd7 {[%emt 0:01:44]} Nxf2+ {[%emt 0:00:36]} 26. Kg1 {[%emt 0:00:03]} Nd3 {[%emt 0:00:00]} 27. Bxc8 {[%emt 0:02:42]} Rxc8 {[%emt 0:00:00]} 28. Ne5 {[%emt 0:01:03]} Nxc1 {[%emt 0:00:18]} 29. Nxg6+ {[%emt 0:01:22]} fxg6 {[%emt 0:00:03]} 30. Rxc1 {[%emt 0:00:00]} cxd4 {[%emt 0:04:27]} 31. exd4 {[%emt 0:00:44]} Bf6 {[%emt 0:00:32]} 32. Bd6+ {[%emt 0:01:28]} Ke8 {[%emt 0:00:04]} 33. Re1 {[%emt 0:00:23]} Kd7 {[%emt 0:00:08]} 34. Bg3 {[%emt 0:00:00]} Re8 {[%emt 0:01:35]} 35. Kf2 {[%emt 0:01:06]} Kc6 {[%emt 0:00:10]} 36. Ke2 {[%emt 0:00:00]} Kb5 {[%emt 0:00:33]} 37. Ra1 {[%emt 0:00:20]} e5 {[%emt 0:05:36]} 38. Kd3 {[%emt 0:01:18]} e4+ {[%emt 0:00:05]} 39. Ke2 {[%emt 0:00:00]} Rc8 {[%emt 0:00:31]} 40. Bf4 {[%emt 0:00:00]} Rf8 {[%emt 0:01:37]} 41. Bd6 {[%emt 0:03:56]} Rc8 {[%emt 0:05:30]} 42. Bf4 {[%emt 0:05:30]} Bh4 {[%emt 0:02:30]} 43. Be5 {[%emt 0:04:51]} Rf8 {[%emt 0:03:30]} 44. g3 {[%emt 0:03:22]} Bf6 {[%emt 0:00:30]} 45. Ke3 {[%emt 0:05:56]} Bxe5 {[%emt 0:09:36]} 46. dxe5 {[%emt 0:00:30]} Rf3+ {[%emt 0:00:00]} 47. Ke2 {[%emt 0:00:00]} Kc6 {[%emt 0:00:33]} 48. Rd1 {[%emt 0:00:40]} Rf5 {[%emt 0:01:29]} 49. e6 {[%emt 0:03:40]} Kd6 {[%emt 0:00:35]} 50. g4 {[%emt 0:00:31]} Rg5 {[%emt 0:02:54]} 51. Rf1 {[%emt 0:01:36]} Kxe6 {[%emt 0:03:11]} 52. Rf8 {[%emt 0:00:31]} d4 {[%emt 0:02:00]} 53. cxd4 {[%emt 0:02:19]} Ra5 {[%emt 0:00:08]} 54. Ke3 {[%emt 0:00:34]} Rxa6 {[%emt 0:01:12]} 55. Kxe4 {[%emt 0:00:04]} Ra5 {[%emt 0:01:12]} 56. Re8+ {[%emt 0:01:20]} Kf7 {[%emt 0:00:24]} 57. Rb8 {[%emt 0:00:21]} Ke6 {[%emt 0:00:24]} 58. Re8+ {[%emt 0:00:55]} Kf7 {[%emt 0:00:04]} 59. Rb8 {[%emt 0:00:13]} Ke6 {[%emt 0:00:06]} 60. Re8+ {[%emt 0:00:00]} Kf7 {[%emt 0:00:37]} 61. Rb8 {[%emt 0:00:05]} 1/2-1/2

[Event "22nd ECCC Women 2017"]
[Site "Antalya"]
[Date "2017.10.13"]
[Round "6"]
[White "Hojjatova, Aydan"]
[Black "Kovanova, Baira"]
[Result "1-0"]
[ECO "C54"]
[WhiteElo "2341"]
[BlackElo "2371"]
[Annotator "RC"]
[PlyCount "111"]
[EventType "team-tourn"]
[EventCountry "TUR"]
[SourceTitle "playchess.com"]
[Source "ChessBase"]
[SourceQuality "1"]
[WhiteTeam "Odlar Yurdu"]
[BlackTeam "UGRA"]
[TimeControl "40/5400+30:1800+30"]

1. e4 {[%emt 0:00:30]} e5 {[%emt 0:01:00]} 2. Nf3 {[%emt 0:00:00]} Nc6 {[%emt 0:00:00]} 3. Bc4 {[%emt 0:00:00]} Bc5 {[%emt 0:00:00]} 4. O-O {[%emt 0:00:30]} Nf6 {[%emt 0:00:00]} 5. d3 {[%emt 0:00:00]} d6 {[%emt 0:01:00]} 6. c3 {[%emt 0:00:00]} a6 {[%emt 0:01:30]} 7. a4 {[%emt 0:00:30]} Ba7 {[%emt 0:00:30]} 8. Na3 {[%emt 0:00:30]} Ne7 {[%emt 0:02:30]} 9. Nc2 {[%emt 0:00:30]} c6 {[%emt 0:03:30]} 10. Be3 {[%emt 0:07:30]} Bxe3 {[%emt 0:01:30]} 11. Nxe3 {[%emt 0:00:00]} O-O {[%emt 0:01:30]} 12. Re1 {[%emt 0:07:00]} Ng6 {[%emt 0:09:30]} 13. Qc2 {[%emt 0:06:30]} d5 {[%emt 0:11:30]} 14. Bb3 {[%emt 0:06:30]} h6 {[%emt 0:03:30]} 15. Rad1 {[%emt 0:01:30]} Be6 {[%emt 0:06:30]} 16. d4 {[%emt 0:24:30]} Nxe4 {[%emt 0:04:30]} 17. c4 {[%emt 0:05:30]} exd4 {[%emt 0:14:30]} 18. Rxd4 {[%emt 0:04:30]} Nf6 {[%emt 0:12:30]} 19. cxd5 {[%emt 0:06:30]} cxd5 {[%emt 0:00:30]} 20. Qd3 {[%emt 0:02:30]} Qb6 {[%emt 0:05:18]} 21. h4 {[%emt 0:05:59]} Rad8 {[%emt 0:01:06]} 22. g3 {[%emt 0:05:07]} Ne7 {[%emt 0:05:35]} 23. Ne5 {[%emt 0:09:04]} Nc6 {[%emt 0:01:43]} 24. Nxc6 {[%emt 0:00:42]} bxc6 {[%emt 0:00:30]} 25. Bc2 {[%emt 0:00:00]} g6 {[%emt 0:07:37]} 26. b4 {[%emt 0:02:06]} Ne4 {[%emt 0:00:45]} 27. Kg2 {[%emt 0:01:02]} a5 {[%emt 0:00:27]} 28. b5 {[%emt 0:01:55]} h5 {[%emt 0:03:21]} 29. bxc6 {[%emt 0:01:45]} Qxc6 {[%emt 0:00:01]} 30. f3 {[%emt 0:00:00]} Nf6 {[%emt 0:01:12]} 31. Rf4 {[%emt 0:01:12]} Nd7 {[%emt 0:00:17]} 32. g4 {[%emt 0:00:36]} Ne5 {[%emt 0:00:49]} 33. Qd4 {[%emt 0:00:24]} Nc4 {[%emt 0:00:39]} 34. Bd3 {[%emt 0:00:29]} Qb6 {[%emt 0:00:45]} 35. Qxb6 {[%emt 0:00:51]} Nxb6 {[%emt 0:00:30]} 36. gxh5 {[%emt 0:00:30]} d4 {[%emt 0:00:30]} 37. Nc2 {[%emt 0:00:30]} gxh5 {[%emt 0:00:30]} 38. Kf2 {[%emt 0:00:30]} Nxa4 {[%emt 0:00:30]} 39. Rg1+ {[%emt 0:00:30]} Bg4 {[%emt 0:00:30]} 40. fxg4 {[%emt 0:00:30]} Nc5 {[%emt 0:01:55]} 41. gxh5+ {[%emt 0:08:48]} Kh8 {[%emt 0:00:00]} 42. Ke2 {[%emt 0:02:30]} Rd6 {[%emt 0:04:00]} 43. Rg5 {[%emt 0:01:50]} Nb3 {[%emt 0:08:32]} 44. Kd1 {[%emt 0:04:07]} a4 {[%emt 0:01:20]} 45. Na3 {[%emt 0:02:56]} Re6 {[%emt 0:03:09]} 46. Nc4 {[%emt 0:03:19]} a3 {[%emt 0:05:06]} 47. Nxa3 {[%emt 0:01:23]} Re3 {[%emt 0:00:40]} 48. Bc4 {[%emt 0:03:46]} f6 {[%emt 0:05:19]} 49. Rgf5 {[%emt 0:02:12]} Na1 {[%emt 0:02:19]} 50. Nb5 {[%emt 0:00:51]} Rfe8 {[%emt 0:02:39]} 51. Rxf6 {[%emt 0:01:15]} Nb3 {[%emt 0:01:10]} 52. Nd6 {[%emt 0:01:53]} Re1+ {[%emt 0:01:29]} 53. Kc2 {[%emt 0:00:05]} d3+ {[%emt 0:00:00]} 54. Kxd3 {[%emt 0:01:06]} R8e3+ {[%emt 0:00:39]} 55. Kc2 {[%emt 0:00:05]} Na1+ {[%emt 0:00:30]} 56. Kb2 {[%emt 0:00:28]} 1-0

[Event "22nd ECCC Women 2017"]
[Site "Antalya"]
[Date "2017.10.14"]
[Round "6"]
[White "Zaiatz, Elena"]
[Black "Isgandarova, Khayala"]
[Result "1-0"]
[ECO "E73"]
[WhiteElo "2334"]
[BlackElo "2242"]
[Annotator "ChessBase"]
[PlyCount "47"]
[EventType "team-tourn"]
[EventCountry "TUR"]
[SourceTitle "playchess.com"]
[Source "ChessBase"]
[SourceQuality "1"]
[WhiteTeam "Bossa Nova"]
[BlackTeam "Anatolia"]
[TimeControl "40/5400+30:1800+30"]

1. d4 {[%emt 0:00:30]} Nf6 {[%emt 0:01:00]} 2. c4 {[%emt 0:00:30]} g6 {[%emt 0:00:00]} 3. Nc3 {[%emt 0:00:00]} Bg7 {[%emt 0:00:00]} 4. e4 {[%emt 0:00:00]} d6 {[%emt 0:00:30]} 5. Be2 {[%emt 0:00:00]} O-O {[%emt 0:00:30]} 6. Be3 {[%emt 0:00:00]} e5 {[%emt 0:00:30]} 7. d5 {[%emt 0:00:00]} a5 {[%emt 0:01:30]} 8. g4 {[%emt 0:00:00]} Na6 {[%emt 0:01:30]} 9. g5 {[%emt 0:00:30]} Ne8 {[%emt 0:01:30]} 10. h4 {[%emt 0:02:30]} f5 {[%emt 0:01:30]} 11. gxf6 {[%emt 0:00:30]} Nxf6 {[%emt 0:07:30]} 12. h5 {[%emt 0:01:30]} Nc5 {[%emt 0:02:30]} 13. hxg6 {[%emt 0:00:30]} hxg6 {[%emt 0:00:30]} 14. Bf3 {[%emt 0:01:30]} Nh7 {[%emt 0:06:30]} 15. Qd2 {[%emt 0:21:30]} Bf6 {[%emt 0:09:30]} 16. Nh3 {[%emt 0:17:30]} Bh4 {[%emt 0:03:30]} 17. Be2 {[%emt 0:02:30]} Nf6 {[%emt 0:34:30]} 18. Bxc5 {[%emt 0:01:30]} dxc5 {[%emt 0:01:30]} 19. Qh6 {[%emt 0:00:30]} Ne8 {[%emt 0:03:30]} 20. O-O-O {[%emt 0:18:30]} Bxh3 {[%emt 0:10:08]} 21. Rdg1 {[%emt 0:01:30]} Ra6 {[%emt 0:02:46]} 22. Rxh3 {[%emt 0:02:30]} Rf4 {[%emt 0:00:11]} 23. Bg4 {[%emt 0:01:30]} Bg5 {[%emt 0:10:28]} 24. Qh8+ {[%emt 0:00:30]} 1-0

[Event "22nd ECCC Women 2017"]
[Site "Antalya"]
[Date "2017.10.13"]
[Round "6"]
[White "Cosma, Elena-Luminita"]
[Black "Celik, Eda"]
[Result "1-0"]
[ECO "E05"]
[WhiteElo "2333"]
[BlackElo "1880"]
[Annotator "NA"]
[PlyCount "85"]
[EventType "team-tourn"]
[EventCountry "TUR"]
[SourceTitle "playchess.com"]
[Source "ChessBase"]
[SourceQuality "1"]
[WhiteTeam "Timisoara"]
[BlackTeam "Aegean"]
[TimeControl "40/5400+30:1800+30"]

1. Nf3 {[%emt 0:00:30]} d5 {[%emt 0:01:00]} 2. d4 {[%emt 0:00:30]} Nf6 {[%emt 0:00:30]} 3. g3 {[%emt 0:00:00]} e6 {[%emt 0:00:30]} 4. Bg2 {[%emt 0:00:00]} Be7 $11 {[%emt 0:00:00] LiveBook: 1350 Games} 5. O-O {[%emt 0:00:30]} O-O {[%emt 0:00:00]} 6. c4 {[%emt 0:00:00]} dxc4 {[%emt 0:00:00]} 7. Qc2 {[%emt 0:00:00]} a6 {[%emt 0:00:00]} 8. a4 {[%emt 0:00:30]} Bd7 {[%emt 0:00:00]} 9. Qxc4 {[%emt 0:00:00]} Bc6 {[%emt 0:01:00]} 10. Bg5 {[%emt 0:00:00]} Nbd7 {[%emt 0:06:30]} 11. Nc3 {[%emt 0:01:30]} Nb6 {[%emt 0:06:30]} 12. Qd3 {[%emt 0:03:30]} h6 {[%emt 0:03:30]} 13. Bxf6 {[%emt 0:03:30]} Bxf6 {[%emt 0:00:30]} 14. e4 {[%emt 0:12:30]} Nd7 {[%emt 0:07:30]} 15. Rfd1 {[%emt 0:04:30]} b6 {[%emt 0:01:30]} 16. h4 {[%emt 0:07:30]} Bb7 {[%emt 0:01:30]} 17. Qc2 {[%emt 0:16:30]} Be7 {[%emt 0:03:30]} 18. e5 {[%emt 0:01:30]} Ra7 {[%emt 0:09:30]} 19. d5 {[%emt 0:11:30]} exd5 {[%emt 0:05:30]} 20. Nxd5 {[%emt 0:00:30]} Re8 {[%emt 0:00:30]} 21. Qf5 {[%emt 0:00:30]} g6 {[%emt 0:00:30]} 22. Qg4 {[%emt 0:07:30]} Bc8 {[%emt 0:29:30]} 23. e6 {[%emt 0:02:30]} h5 {[%emt 0:03:22]} 24. exf7+ {[%emt 0:06:30]} Kxf7 {[%emt 0:00:30]} 25. Qc4 {[%emt 0:00:30]} Kg7 {[%emt 0:04:07]} 26. Nf4 {[%emt 0:00:30]} Bd6 {[%emt 0:02:19]} 27. Ne6+ {[%emt 0:01:01]} Rxe6 {[%emt 0:00:30]} 28. Qxe6 {[%emt 0:00:00]} Nf6 {[%emt 0:01:25]} 29. Qc4 {[%emt 0:02:19]} Bb7 {[%emt 0:04:08]} 30. Ng5 {[%emt 0:01:11]} Qg8 {[%emt 0:04:35]} 31. Qxg8+ {[%emt 0:01:52]} Kxg8 {[%emt 0:00:13]} 32. Bxb7 {[%emt 0:01:04]} Rxb7 {[%emt 0:00:02]} 33. Rac1 {[%emt 0:00:11]} Rb8 {[%emt 0:02:34]} 34. Rc6 {[%emt 0:03:09]} Be5 {[%emt 0:03:37]} 35. b3 {[%emt 0:01:39]} Re8 {[%emt 0:00:13]} 36. Re1 {[%emt 0:03:15]} Bd6 {[%emt 0:00:44]} 37. Rxe8+ {[%emt 0:00:43]} Nxe8 {[%emt 0:00:30]} 38. Ne4 {[%emt 0:00:00]} Be5 {[%emt 0:00:35]} 39. a5 {[%emt 0:00:00]} Kf7 {[%emt 0:00:27]} 40. axb6 {[%emt 0:00:47]} cxb6 {[%emt 0:00:09]} 41. Rxb6 {[%emt 0:01:19]} a5 {[%emt 0:00:30]} 42. Ra6 {[%emt 0:00:30]} Bc7 {[%emt 0:02:30]} 43. Ng5+ {[%emt 0:00:30]} 1-0